[Event "27th CRO-chT 1B-Men 2018"]
[Site "Biograd"]
[Date "2018.09.19"]
[Round "5.30"]
[White "Vrban, Mladen"]
[Black "Safar, Sandro"]
[Result "1-0"]
[ECO "B23"]
[WhiteElo "2280"]
[BlackElo "2214"]
[Annotator "ChessBase"]
[PlyCount "95"]
[EventDate "2018.09.15"]
[EventType "team-tourn"]
[EventCountry "CRO"]
[SourceTitle "playchess.com"]
[Source "ChessBase"]
[SourceQuality "1"]
[TimeControl "40/5400+30:1800+30"]

1. e4 c5 2. Nc3 Nc6 3. f4 g6 4. Nf3 Bg7 5. Bc4 e6 6. O-O Nge7 7. Qe1 O-O 8. d3 Na5 9. e5 Nxc4 10. dxc4 d5 11. Qf2 b6 12. Rd1 Bb7 13. Nb5 Bc6 14. c3 a6 15. Na3 Qc7 16. Be3 Nf5 17. Bd2 f6 18. Re1 fxe5 19. Nxe5 Bb7 20. Nf3 Rae8 21. Re2 h6 22. Rae1 Nd6 23. Qg3 Qf7 24. Ne5 Bxe5 25. fxe5 Ne4 26. Rxe4 dxe4 27. Bxh6 Qf5 28. Bxf8 Rxf8 29. Nc2 Qh5 30. Ne3 Rd8 31. Ng4 Kg7 32. Rf1 Qg5 33. h4 Qe7 34. Rf6 Rh8 35. Qf4 Rh5 36. Qg3 Qe8 37. Ne3 b5 38. Kh2 Rh6 39. Qf4 Rh5 40. Kg3 Qe7 41. Qg4 Qe8 42. Rxe6 Qf7 43. Rd6 Bc6 44. Rxc6 Rxe5 45. Rd6 Kh7 {[%emt 2:12:45]} 46. h5 {[%emt 2:03:22]} g5 {[%emt 0:00:34]} 47. Rd7 {[%emt 0:00:30]} Re7 {[%emt 0:00:50]} 48. Qf5+ {[%emt 0:00:30]} 1-0

[Event "27th CRO-chT 1B-Men 2018"]
[Site "Biograd"]
[Date "2018.09.20"]
[Round "6.6"]
[White "Matijevic, Hrvoje"]
[Black "Horvat, David"]
[Result "1/2-1/2"]
[ECO "D03"]
[WhiteElo "2228"]
[BlackElo "2212"]
[Annotator "ChessBase"]
[PlyCount "28"]
[EventDate "2018.09.15"]
[EventType "team-tourn"]
[EventCountry "CRO"]
[SourceTitle "playchess.com"]
[Source "ChessBase"]
[SourceQuality "1"]
[TimeControl "40/5400+30:1800+30"]

1. d4 {[%emt 0:04:30]} Nf6 {[%emt 0:00:30]} 2. Nf3 {[%emt 0:00:30]} g6 {[%emt 0:00:00]} 3. Bg5 {[%emt 0:00:30]} Bg7 {[%emt 0:00:00]} 4. Nbd2 {[%emt 0:00:30]} c5 {[%emt 0:03:30]} 5. e3 {[%emt 0:12:30]} cxd4 {[%emt 0:01:30]} 6. exd4 {[%emt 0:00:30]} O-O {[%emt 0:02:30]} 7. Bd3 {[%emt 0:11:30]} d5 {[%emt 0:03:30]} 8. O-O {[%emt 0:00:00]} Nc6 {[%emt 0:09:30]} 9. c3 {[%emt 0:04:00]} Be6 {[%emt 0:11:30]} 10. Re1 {[%emt 0:04:30]} Qc8 {[%emt 0:06:30]} 11. Qc2 {[%emt 0:15:30]} Bf5 {[%emt 0:14:30]} 12. Bxf5 {[%emt 0:02:30]} Qxf5 {[%emt 0:00:30]} 13. Qxf5 {[%emt 0:00:30]} gxf5 {[%emt 0:00:00]} 14. Ne5 {[%emt 0:01:30]} Rfe8 {[%emt 0:11:00]} 1/2-1/2

[Event "27th CRO-chT 1B-Men 2018"]
[Site "Biograd"]
[Date "2018.09.20"]
[Round "6.17"]
[White "Vujakovic, Branko"]
[Black "Zelic, Mladen"]
[Result "1/2-1/2"]
[ECO "C63"]
[WhiteElo "2340"]
[BlackElo "2266"]
[Annotator "NA"]
[PlyCount "52"]
[EventDate "2018.09.15"]
[EventType "team-tourn"]
[EventCountry "CRO"]
[SourceTitle "playchess.com"]
[Source "ChessBase"]
[SourceQuality "1"]
[TimeControl "40/5400+30:1800+30"]

{[%evp 12,46,23,6,18,32767,32767,32767,32767,37,32,33,29,32,16,-15,-21,32767,32767,32767,32767,32767,32767,32767,32767,-68,24,20,16,0,46,44,52,41,50,0,0]} 1. e4 {[%emt 0:00:30]} e5 {[%emt 0:00:30]} 2. Nf3 {[%emt 0:00:00]} Nc6 {[%emt 0:00:00]} 3. Bb5 {[%emt 0:00:00]} f5 {[%emt 0:00:00]} 4. d4 {[%emt 0:00:30]} fxe4 {[%emt 0:00:30]} 5. Bxc6 {[%emt 0:00:00]} dxc6 {[%emt 0:00:30]} 6. Nxe5 {[%emt 0:00:00]} Nf6 {[%emt 0:00:00]} 7. Nc3 {[%emt 0:00:30] LiveBook: 4 Games C63: Ruy Lopez: Schliemann/Jaenisch Defence} Bd6 {[%emt 0:04:00]} (7... Bb4 8. O-O O-O 9. Bg5 Qe8 10. Qe2 Bxc3 11. bxc3 h6 12. Bxf6 gxf6 13. Nc4 Qg6 14. Rae1 Bf5 {1-0 (24) Short,N (2664)-Schebler,G (2451) Pattaya 2015}) 8. Bg5 {[%emt 0:00:30]} O-O {[%emt 0:08:30]} 9. Qe2 {[%emt 0:04:30]} Qe8 {[%emt 0:03:30]} 10. Bxf6 {[%emt 0:03:30]} ({Much weaker is} 10. Nxe4 Nxe4 11. Qxe4 Bf5 $15) 10... gxf6 {[%emt 0:00:30]} 11. Nc4 {[%emt 0:00:00]} f5 {[%emt 0:02:30]} 12. Nxd6 $146 {[%emt 0:00:00]} ({Predecessor:} 12. O-O-O b5 13. Nxd6 cxd6 14. Qe3 f4 15. Qxe4 {1-0 (47) Gao,R (2442)-Yang,K (2374) Beijing 2012}) 12... cxd6 {[%emt 0:00:30]} 13. Qe3 {[%emt 0:00:30]} f4 $1 {[%emt 0:04:30]} 14. Qe2 {[%emt 0:03:30]} d5 {[%emt 0:00:30]} 15. O-O-O {[%emt 0:01:30]} Qg6 {[%emt 0:04:30]} 16. f3 {[%emt 0:09:30]} Bf5 {[%emt 0:02:30]} 17. Rde1 {[%emt 0:05:30]} Rae8 {[%emt 0:01:30]} 18. Rhf1 {[%emt 0:21:30]} Kh8 {[%emt 0:09:30]} (18... Qg5 $15) 19. fxe4 {[%emt 0:06:30]} Bxe4 {[%emt 0:00:30]} 20. Qd2 {[%emt 0:00:30]} Qd6 {[%emt 0:19:30]} 21. Rf2 {[%emt 0:01:30]} Re6 {[%emt 0:02:30]} 22. Ref1 {[%emt 0:03:30]} Ref6 {[%emt 0:00:30]} 23. Ne2 {[%emt 0:07:30]} Bxg2 $11 {[%emt 0:05:30]} 24. Rxg2 {[%emt 0:00:30]} f3 {[%emt 0:01:30]} 25. Rgf2 {[%emt 0:00:30]} fxe2 {[%emt 0:00:00]} 26. Qxe2 {[%emt 0:00:00]} Rxf2 {[%emt 0:01:00]} 1/2-1/2

[Event "27th CRO-chT 1B-Men 2018"]
[Site "Biograd"]
[Date "2018.09.20"]
[Round "6.27"]
[White "Matkovic, Tonci"]
[Black "Maier, Christian"]
[Result "*"]
[ECO "C78"]
[WhiteElo "2274"]
[BlackElo "2357"]
[Annotator "ChessBase"]
[PlyCount "32"]
[EventDate "2018.09.15"]
[EventType "team-tourn"]
[EventCountry "CRO"]
[SourceTitle "playchess.com"]
[Source "ChessBase"]
[SourceQuality "1"]
[TimeControl "40/5400+30:1800+30"]

1. e4 {[%emt 0:00:30]} e5 {[%emt 0:00:30]} 2. Nf3 {[%emt 0:00:00]} Nc6 {[%emt 0:00:00]} 3. Bb5 {[%emt 0:00:00]} a6 {[%emt 0:00:00]} 4. Ba4 {[%emt 0:00:00]} Nf6 {[%emt 0:00:30]} 5. O-O {[%emt 0:00:00]} b5 {[%emt 0:00:30]} 6. Bb3 {[%emt 0:00:30]} Bb7 {[%emt 0:02:30]} 7. Re1 {[%emt 0:05:30]} Bc5 {[%emt 0:04:30]} 8. c3 {[%emt 0:00:30]} d6 {[%emt 0:00:00]} 9. d4 {[%emt 0:00:30]} Bb6 {[%emt 0:00:00]} 10. Be3 {[%emt 0:05:30]} O-O {[%emt 0:05:30]} 11. d5 {[%emt 0:00:30]} Ne7 {[%emt 0:00:30]} 12. Bxb6 {[%emt 0:00:30]} cxb6 {[%emt 0:00:30]} 13. Nbd2 {[%emt 0:12:30]} Ng6 {[%emt 0:00:30]} 14. Nf1 {[%emt 0:05:30]} Bc8 {[%emt 0:00:30]} 15. Bc2 {[%emt 0:04:30]} Nh5 {[%emt 0:14:30]} 16. Nxe5 {[%emt 0:04:30]} Nxe5 {[%emt 0:00:30]} *

[Event "27th CRO-chT 1B-Men 2018"]
[Site "Biograd"]
[Date "2018.09.21"]
[Round "7.6"]
[White "Tomasic, Roland"]
[Black "Bubalovic, Davorin"]
[Result "0-1"]
[ECO "B42"]
[WhiteElo "2166"]
[BlackElo "2206"]
[Annotator "ChessBase"]
[PlyCount "92"]
[EventDate "2018.09.15"]
[EventType "team-tourn"]
[EventCountry "CRO"]
[SourceTitle "playchess.com"]
[Source "ChessBase"]
[SourceQuality "1"]
[TimeControl "40/5400+30:1800+30"]

1. e4 {[%emt 0:00:30]} c5 {[%emt 0:00:30]} 2. Nf3 {[%emt 0:00:30]} e6 {[%emt 0:00:00]} 3. d4 {[%emt 0:00:00]} cxd4 {[%emt 0:00:00]} 4. Nxd4 {[%emt 0:00:00]} a6 {[%emt 0:00:00]} 5. Bd3 {[%emt 0:00:00]} Bc5 {[%emt 0:00:00]} 6. Nb3 {[%emt 0:00:00]} Be7 {[%emt 0:00:30]} 7. Qg4 {[%emt 0:00:00]} g6 {[%emt 0:00:30]} 8. Qe2 {[%emt 0:00:00]} Qc7 {[%emt 0:00:30]} 9. O-O {[%emt 0:00:30]} Nc6 {[%emt 0:00:30]} 10. f4 {[%emt 0:00:30]} Nf6 {[%emt 0:01:30]} 11. a4 {[%emt 0:01:30]} d5 {[%emt 0:02:30]} 12. e5 {[%emt 0:00:30]} Nd7 {[%emt 0:01:30]} 13. Be3 {[%emt 0:00:30]} b6 {[%emt 0:04:30]} 14. N1d2 {[%emt 0:04:30]} Nc5 {[%emt 0:02:30]} 15. c3 {[%emt 0:02:30]} Bb7 {[%emt 0:05:30]} 16. Bc2 {[%emt 0:00:30]} a5 {[%emt 0:10:30]} 17. Nxc5 {[%emt 0:09:30]} bxc5 {[%emt 0:00:00]} 18. Bd3 {[%emt 0:01:30]} c4 {[%emt 0:03:00]} 19. Bc2 {[%emt 0:00:00]} Ba6 {[%emt 0:04:30]} 20. Nf3 {[%emt 0:01:00]} Rb8 {[%emt 0:04:30]} 21. Rab1 {[%emt 0:00:30]} Rb7 {[%emt 0:05:30]} 22. Qf2 {[%emt 0:10:30]} Nb8 {[%emt 0:03:30]} 23. h4 {[%emt 0:01:30]} Nd7 {[%emt 0:00:30]} 24. Rfd1 {[%emt 0:06:30]} Nc5 {[%emt 0:04:30]} 25. Bxc5 {[%emt 0:00:30]} Bxc5 {[%emt 0:00:30]} 26. Nd4 {[%emt 0:00:30]} O-O {[%emt 0:03:30]} 27. Kh1 {[%emt 0:08:30]} Rfb8 {[%emt 0:01:30]} 28. Qg3 {[%emt 0:00:00]} Bxd4 {[%emt 0:02:30]} 29. Rxd4 {[%emt 0:00:00]} Rxb2 {[%emt 0:00:30]} 30. Rc1 {[%emt 0:00:30]} Qe7 {[%emt 0:21:14]} 31. h5 {[%emt 0:01:30]} Bc8 {[%emt 0:01:15]} 32. hxg6 {[%emt 0:31:30]} fxg6 {[%emt 0:00:37]} 33. f5 {[%emt 0:00:31]} exf5 {[%emt 0:00:09]} 34. Rxd5 {[%emt 0:00:29]} Be6 {[%emt 0:00:31]} 35. Rxa5 {[%emt 0:00:30]} Rd8 {[%emt 0:00:22]} 36. Qf4 {[%emt 0:05:06]} Qb7 {[%emt 0:02:03]} 37. Qg5 {[%emt 0:02:20]} Re8 {[%emt 0:00:32]} 38. Qe3 {[%emt 0:12:03]} Bd5 {[%emt 0:03:40]} 39. Rb5 {[%emt 0:01:16]} Rxb5 {[%emt 0:00:00]} 40. axb5 {[%emt 0:00:33]} Qxb5 {[%emt 0:00:00]} 41. Bxf5 {[%emt 0:00:42]} Rxe5 {[%emt 0:10:37]} 42. Qg5 {[%emt 0:01:30]} Rxf5 {[%emt 0:00:30]} 43. Qd8+ {[%emt 0:00:30]} Rf8 {[%emt 0:00:30]} 44. Qd6 {[%emt 0:00:30]} Qc6 {[%emt 0:00:00]} 45. Qe5 {[%emt 0:00:30]} Bxg2+ {[%emt 0:01:00]} 46. Kg1 {[%emt 0:00:00]} Bh3 {[%emt 0:01:30]} 0-1

[Event "27th CRO-chT 1B-Men 2018"]
[Site "Biograd"]
[Date "2018.09.21"]
[Round "7.30"]
[White "Matanovic, Luka"]
[Black "Matijevic, Hrvoje"]
[Result "1/2-1/2"]
[ECO "C41"]
[WhiteElo "2252"]
[BlackElo "2228"]
[Annotator "ChessBase"]
[PlyCount "62"]
[EventDate "2018.09.15"]
[EventType "team-tourn"]
[EventCountry "CRO"]
[SourceTitle "playchess.com"]
[Source "ChessBase"]
[SourceQuality "1"]
[TimeControl "40/5400+30:1800+30"]

1. e4 {[%emt 0:00:30]} d6 {[%emt 0:06:30]} 2. d4 {[%emt 0:00:30]} Nf6 {[%emt 0:00:00]} 3. Nc3 {[%emt 0:00:00]} e5 {[%emt 0:00:00]} 4. Nf3 {[%emt 0:01:00]} Nbd7 {[%emt 0:01:30]} 5. Bc4 {[%emt 0:00:30]} Be7 {[%emt 0:00:30]} 6. O-O {[%emt 0:00:30]} O-O {[%emt 0:00:30]} 7. Re1 {[%emt 0:00:30]} c6 {[%emt 0:01:30]} 8. a4 {[%emt 0:01:30]} a5 {[%emt 0:00:30]} 9. Ba2 {[%emt 0:04:30]} exd4 {[%emt 0:20:30]} 10. Nxd4 {[%emt 0:00:30]} Nc5 {[%emt 0:08:30]} 11. Qf3 {[%emt 0:03:30]} Nfd7 {[%emt 0:08:30]} 12. Qg3 {[%emt 0:13:30]} Nb6 {[%emt 0:12:30]} 13. Bh6 {[%emt 0:21:30]} Bf6 {[%emt 0:04:30]} 14. Rad1 {[%emt 0:05:30]} Kh8 {[%emt 0:01:30]} 15. Bf4 {[%emt 0:04:30]} Bh4 {[%emt 0:12:59]} 16. Qe3 {[%emt 0:05:30]} Nbxa4 {[%emt 0:06:00]} 17. Nxa4 {[%emt 0:06:30]} Nxa4 {[%emt 0:00:01]} 18. Qa3 {[%emt 0:08:30]} Nc5 {[%emt 0:03:15]} 19. e5 {[%emt 0:03:46]} Bg4 {[%emt 0:02:15]} 20. Nf3 {[%emt 0:01:58]} Bxf3 {[%emt 0:00:56]} 21. Rxd6 {[%emt 0:02:06]} Qb6 {[%emt 0:00:21]} 22. Be3 {[%emt 0:00:26]} Qb4 {[%emt 0:00:23]} 23. Qxb4 {[%emt 0:02:36]} axb4 {[%emt 0:00:03]} 24. Bxc5 {[%emt 0:02:04]} Rxa2 {[%emt 0:00:13]} 25. Rd4 {[%emt 0:02:51]} Re8 {[%emt 0:06:40]} 26. gxf3 {[%emt 0:00:38]} Bd8 {[%emt 0:00:25]} 27. e6 {[%emt 0:02:03]} Bf6 {[%emt 0:01:14]} 28. Rxb4 {[%emt 0:01:01]} Rxe6 {[%emt 0:00:48]} 29. Rxe6 {[%emt 0:04:20]} fxe6 {[%emt 0:00:02]} 30. Rxb7 {[%emt 0:00:47]} Rxb2 {[%emt 0:00:07]} 31. Rxb2 {[%emt 0:00:45]} Bxb2 {[%emt 0:00:06]} 1/2-1/2

[Event "27th CRO-chT 1B-Men 2018"]
[Site "Biograd"]
[Date "2018.09.22"]
[Round "8.10"]
[White "Mathe, Gaspar"]
[Black "Rogulj, Branko"]
[Result "1/2-1/2"]
[ECO "B03"]
[WhiteElo "2308"]
[BlackElo "2404"]
[Annotator "ChessBase"]
[PlyCount "58"]
[EventDate "2018.09.15"]
[EventType "team-tourn"]
[EventCountry "CRO"]
[SourceTitle "playchess.com"]
[Source "ChessBase"]
[SourceQuality "1"]
[TimeControl "40/5400+30:1800+30"]

1. e4 {[%emt 0:00:30]} Nf6 {[%emt 0:00:30]} 2. e5 {[%emt 0:00:30]} Nd5 {[%emt 0:00:00]} 3. d4 {[%emt 0:00:30]} d6 {[%emt 0:00:00]} 4. c4 {[%emt 0:00:30]} Nb6 {[%emt 0:00:00]} 5. exd6 {[%emt 0:00:30]} exd6 {[%emt 0:00:00]} 6. Bd3 {[%emt 0:00:30]} c5 {[%emt 0:02:30]} 7. d5 {[%emt 0:03:30]} Be7 {[%emt 0:00:30]} 8. Nc3 {[%emt 0:05:30]} O-O {[%emt 0:00:30]} 9. h3 {[%emt 0:06:30]} N8d7 {[%emt 0:05:30]} 10. Nf3 {[%emt 0:06:30]} Bf6 {[%emt 0:00:30]} 11. O-O {[%emt 0:02:30]} Ne5 {[%emt 0:00:30]} 12. Nxe5 {[%emt 0:01:30]} Bxe5 {[%emt 0:00:30]} 13. Bd2 {[%emt 0:03:30]} Nd7 {[%emt 0:03:30]} 14. g3 {[%emt 0:10:30]} Re8 {[%emt 0:01:30]} 15. Kg2 {[%emt 0:00:00]} Nf8 {[%emt 0:01:30]} 16. Qc2 {[%emt 0:02:00]} Bd7 {[%emt 0:00:30]} 17. Rae1 {[%emt 0:05:30]} a6 {[%emt 0:00:30]} 18. a4 {[%emt 0:00:00]} Rb8 {[%emt 0:04:30]} 19. f4 {[%emt 0:03:00]} Bd4 {[%emt 0:05:30]} 20. Ne2 {[%emt 0:08:30]} Bf6 {[%emt 0:00:30]} 21. Bc3 {[%emt 0:02:30]} b5 {[%emt 0:01:30]} 22. axb5 {[%emt 0:01:30]} axb5 {[%emt 0:00:30]} 23. b3 {[%emt 0:01:30]} b4 {[%emt 0:05:30]} 24. Bb2 {[%emt 0:01:30]} Ra8 {[%emt 0:03:30]} 25. Ra1 {[%emt 0:03:30]} Qe7 {[%emt 0:01:30]} 26. Ng1 {[%emt 0:04:30]} Bxb2 {[%emt 0:01:30]} 27. Qxb2 {[%emt 0:00:30]} Qe3 {[%emt 0:01:30]} 28. Rf3 {[%emt 0:01:30]} Qe7 {[%emt 0:01:30]} 29. Rff1 {[%emt 0:03:30]} Qe3 {[%emt 0:11:30]} 1/2-1/2

[Event "27th CRO-chT 1B-Men 2018"]
[Site "Biograd"]
[Date "2018.09.22"]
[Round "8.12"]
[White "Matijevic, Hrvoje"]
[Black "Blazeka, Matej"]
[Result "1/2-1/2"]
[ECO "D30"]
[WhiteElo "2228"]
[BlackElo "2354"]
[Annotator "ChessBase"]
[PlyCount "34"]
[EventDate "2018.09.15"]
[EventType "team-tourn"]
[EventCountry "CRO"]
[SourceTitle "playchess.com"]
[Source "ChessBase"]
[SourceQuality "1"]
[TimeControl "40/5400+30:1800+30"]

1. d4 {[%emt 0:05:30]} d5 {[%emt 0:00:30]} 2. Nf3 {[%emt 0:01:30]} Nf6 {[%emt 0:00:30]} 3. c4 {[%emt 0:00:30]} c6 {[%emt 0:00:00]} 4. e3 {[%emt 0:06:30]} e6 {[%emt 0:00:00]} 5. b3 {[%emt 0:00:30]} c5 {[%emt 0:04:30]} 6. Bb2 {[%emt 0:20:30]} Nc6 {[%emt 0:01:30]} 7. Nbd2 {[%emt 0:02:30]} cxd4 {[%emt 0:02:30]} 8. Nxd4 {[%emt 0:07:30]} Nxd4 {[%emt 0:12:30]} 9. Bxd4 {[%emt 0:06:30]} Be7 {[%emt 0:01:30]} 10. Be2 {[%emt 0:05:30]} dxc4 {[%emt 0:12:30]} 11. Bxc4 {[%emt 0:02:30]} Bd7 {[%emt 0:02:30]} 12. a4 {[%emt 0:03:30]} O-O {[%emt 0:20:30]} 13. O-O {[%emt 0:00:00]} Bc6 {[%emt 0:02:30]} 14. Nf3 {[%emt 0:03:00]} Bd5 {[%emt 0:00:30]} 15. Rc1 {[%emt 0:01:30]} Bxc4 {[%emt 0:19:54]} 16. Rxc4 {[%emt 0:00:30]} Nd5 {[%emt 0:00:24]} 17. e4 {[%emt 0:03:30]} Nb4 {[%emt 0:02:07]} 1/2-1/2

[Event "27th CRO-chT 1B-Men 2018"]
[Site "Biograd"]
[Date "2018.09.22"]
[Round "8.30"]
[White "Brulic, Denis"]
[Black "Bubalovic, Davorin"]
[Result "1/2-1/2"]
[ECO "E65"]
[WhiteElo "2232"]
[BlackElo "2206"]
[Annotator "NA"]
[PlyCount "51"]
[EventDate "2018.09.15"]
[EventType "team-tourn"]
[EventCountry "CRO"]
[SourceTitle "playchess.com"]
[Source "ChessBase"]
[SourceQuality "1"]
[TimeControl "40/5400+30:1800+30"]

{[%evp 8,44,42,3,52,36,31,37,39,39,54,39,60,29,47,39,60,54,56,26,32767,47,60,64,100,38,46,1,15,14,93,16,24,0,0,0,0,0,0]} 1. Nf3 {[%emt 0:00:30]} g6 {[%emt 0:00:30]} 2. g3 {[%emt 0:04:30]} Bg7 {[%emt 0:00:00]} 3. Bg2 {[%emt 0:00:00]} d6 {[%emt 0:01:00]} 4. d4 {[%emt 0:01:00]} c5 {[%emt 0:00:30]} 5. O-O {[%emt 0:02:30]} Na6 {[%emt 0:01:30]} 6. b3 {[%emt 0:04:30]} Nf6 {[%emt 0:03:30]} 7. Bb2 {[%emt 0:00:30]} O-O {[%emt 0:00:00]} 8. c4 {[%emt 0:01:30]} Rb8 {[%emt 0:02:00]} 9. Nc3 {[%emt 0:00:30]} Bd7 {[%emt 0:03:30] LiveBook: 8 Games} 10. e4 {[%emt 0:11:30] E65: King's Indian: Fianchetto: 6...c5 7 0-0 without d5 by White} cxd4 {[%emt 0:01:30]} 11. Nxd4 {[%emt 0:00:30]} ({Reject} 11. Qxd4 Nc5 $11) 11... Nc5 {[%emt 0:00:30]} 12. Qe2 {[%emt 0:07:30]} Ne6 $146 {[%emt 0:07:30]} ({Predecessor:} 12... a6 13. Rfd1 Qa5 14. Nc2 Ne6 15. Ne3 b5 16. Ncd5 Nxd5 17. Nxd5 Rfe8 18. Bxg7 Kxg7 {0-1 (57) Sysala,S (2195)-Obsivac,J (2385) Frydek Mistek 1997}) 13. Qd2 {[%emt 0:07:30]} Qa5 {[%emt 0:10:30]} 14. Nxe6 {[%emt 0:11:30]} Bxe6 {[%emt 0:01:30]} 15. Rad1 {[%emt 0:01:30]} Rfe8 {[%emt 0:06:30]} 16. Rfe1 {[%emt 0:00:00]} a6 {[%emt 0:07:30]} 17. a3 {[%emt 0:10:00]} Qb6 {[%emt 0:05:30]} 18. Qc2 {[%emt 0:00:30]} Qc5 {[%emt 0:01:30] [#]} (18... Nd7 $11) 19. Nd5 {[%emt 0:05:30]} (19. e5 $1 $16 {[%cal Re5f6]} dxe5 20. Na4) 19... Nxd5 {[%emt 0:03:30]} 20. Bxg7 {[%emt 0:02:30]} Ne3 {[%emt 0:03:30]} 21. Rxe3 {[%emt 0:00:30]} Kxg7 {[%emt 0:00:00]} 22. Qb2+ {[%emt 0:01:30]} f6 $11 {[%emt 0:00:00]} 23. Rc3 {[%emt 0:00:30]} Rec8 {[%emt 0:01:30]} 24. b4 {[%emt 0:01:30]} Qh5 {[%emt 0:00:30]} 25. Rdc1 {[%emt 0:01:30]} b6 {[%emt 0:02:30]} 26. Qd2 {[%emt 0:01:30]} 1/2-1/2

[Event "27th CRO-chT 1B-Men 2018"]
[Site "Biograd"]
[Date "2018.09.24"]
[Round "9.20"]
[White "Seyb, Alexander"]
[Black "Ostovic, Matija"]
[Result "1-0"]
[ECO "B91"]
[WhiteElo "2388"]
[BlackElo "2390"]
[Annotator "ChessBase"]
[PlyCount "107"]
[EventDate "2018.09.15"]
[EventType "team-tourn"]
[EventCountry "CRO"]
[SourceTitle "playchess.com"]
[Source "ChessBase"]
[SourceQuality "1"]
[TimeControl "40/5400+30:1800+30"]

1. e4 {[%emt 0:00:30]} c5 {[%emt 0:03:30]} 2. Nf3 {[%emt 0:00:00]} d6 {[%emt 0:00:30]} 3. d4 {[%emt 0:00:00]} cxd4 {[%emt 0:00:00]} 4. Nxd4 {[%emt 0:00:00]} Nf6 {[%emt 0:00:00]} 5. Nc3 {[%emt 0:00:00]} a6 {[%emt 0:00:30]} 6. g3 {[%emt 0:00:00]} e5 {[%emt 0:00:00]} 7. Nde2 {[%emt 0:00:00]} Be7 {[%emt 0:01:00]} 8. Bg2 {[%emt 0:00:30]} O-O {[%emt 0:00:30]} 9. O-O {[%emt 0:00:00]} Nbd7 {[%emt 0:05:30]} 10. a4 {[%emt 0:00:00]} b6 {[%emt 0:03:30]} 11. Nd5 {[%emt 0:00:30]} Nxd5 {[%emt 0:05:30]} 12. Qxd5 {[%emt 0:00:00]} Rb8 {[%emt 0:01:30]} 13. Nc3 {[%emt 0:00:00]} Nf6 {[%emt 0:04:30]} 14. Qd3 {[%emt 0:03:30]} Qc7 {[%emt 0:01:30]} 15. Rd1 {[%emt 0:22:30]} h6 {[%emt 0:06:30]} 16. Be3 {[%emt 0:08:30]} Rd8 {[%emt 0:04:30]} 17. Qe2 {[%emt 0:05:30]} Be6 {[%emt 0:22:30]} 18. Nd5 {[%emt 0:17:30]} Nxd5 {[%emt 0:02:30]} 19. exd5 {[%emt 0:00:30]} Bc8 {[%emt 0:00:30]} 20. Rd3 {[%emt 0:03:30]} Qc4 {[%emt 0:00:30]} 21. b3 {[%emt 0:02:30]} Qc7 {[%emt 0:02:30]} 22. a5 {[%emt 0:03:30]} bxa5 {[%emt 0:01:30]} 23. Qd2 {[%emt 0:00:30]} Bd7 {[%emt 0:02:30]} 24. Rc3 {[%emt 0:02:30]} Qb7 {[%emt 0:00:30]} 25. Rxa5 {[%emt 0:00:30]} Bb5 {[%emt 0:01:30]} 26. Bf1 {[%emt 0:00:30]} Bxf1 {[%emt 0:09:30]} 27. Kxf1 {[%emt 0:00:30]} Rdc8 {[%emt 0:03:21]} 28. Rxc8+ {[%emt 0:00:30]} Qxc8 {[%emt 0:01:19]} 29. Qd3 {[%emt 0:00:30]} Rb5 {[%emt 0:01:33]} 30. Rxb5 {[%emt 0:05:30]} axb5 {[%emt 0:00:09]} 31. h4 {[%emt 0:00:30]} Qh3+ {[%emt 0:02:02]} 32. Ke2 {[%emt 0:02:30]} Qd7 {[%emt 0:02:17]} 33. Kd2 {[%emt 0:03:58]} f5 {[%emt 0:00:52]} 34. h5 {[%emt 0:04:43]} Bf6 {[%emt 0:00:31]} 35. f3 {[%emt 0:01:56]} Qf7 {[%emt 0:11:17]} 36. Qxb5 {[%emt 0:03:01]} Qxh5 {[%emt 0:00:09]} 37. Qe2 {[%emt 0:00:14]} f4 {[%emt 0:01:04]} 38. gxf4 {[%emt 0:01:50]} exf4 {[%emt 0:00:09]} 39. Bxf4 {[%emt 0:00:04]} Qxd5+ {[%emt 0:00:05]} 40. Qd3 {[%emt 0:00:00]} Qxd3+ {[%emt 0:00:00]} 41. Kxd3 {[%emt 0:01:44]} Be7 {[%emt 0:22:02]} 42. Ke4 {[%emt 0:00:30]} Kf7 {[%emt 0:01:02]} 43. Kd5 {[%emt 0:01:30]} g5 {[%emt 0:01:27]} 44. Bh2 {[%emt 0:02:30]} Ke8 {[%emt 0:01:00]} 45. b4 {[%emt 0:02:30]} Kd7 {[%emt 0:00:36]} 46. c4 {[%emt 0:00:30]} h5 {[%emt 0:01:59]} 47. b5 {[%emt 0:00:30]} g4 {[%emt 0:01:41]} 48. fxg4 {[%emt 0:00:00]} hxg4 {[%emt 0:00:02]} 49. Bg3 {[%emt 0:00:00]} Bg5 {[%emt 0:03:47]} 50. Bxd6 {[%emt 0:01:30]} Bh4 {[%emt 0:00:26]} 51. c5 {[%emt 0:03:30]} g3 {[%emt 0:02:58]} 52. c6+ {[%emt 0:00:30]} Ke8 {[%emt 0:00:08]} 53. Ke6 {[%emt 0:00:00]} Kd8 {[%emt 0:00:30]} 54. b6 {[%emt 0:00:00]} 1-0

[Event "27th CRO-chT 1B-Men 2018"]
[Site "Biograd"]
[Date "2018.09.24"]
[Round "9.22"]
[White "Muha, Miljenko"]
[Black "Mathe, Gaspar"]
[Result "1-0"]
[ECO "E14"]
[WhiteElo "2364"]
[BlackElo "2308"]
[Annotator "ChessBase"]
[PlyCount "61"]
[EventDate "2018.09.15"]
[EventType "team-tourn"]
[EventCountry "CRO"]
[SourceTitle "playchess.com"]
[Source "ChessBase"]
[SourceQuality "1"]
[TimeControl "40/5400+30:1800+30"]

1. d4 {[%emt 0:00:30]} Nf6 {[%emt 0:00:30]} 2. c4 {[%emt 0:00:00]} e6 {[%emt 0:00:00]} 3. Nf3 {[%emt 0:00:00]} d5 {[%emt 0:01:00]} 4. e3 {[%emt 0:00:30]} Be7 {[%emt 0:03:30]} 5. b3 {[%emt 0:00:30]} O-O {[%emt 0:01:30]} 6. Bd3 {[%emt 0:00:30]} b6 {[%emt 0:00:30]} 7. O-O {[%emt 0:00:00]} Nbd7 {[%emt 0:01:30]} 8. Bb2 {[%emt 0:01:00]} c5 {[%emt 0:01:30]} 9. Nbd2 {[%emt 0:00:30]} cxd4 {[%emt 0:01:30]} 10. exd4 {[%emt 0:01:30]} Bb7 {[%emt 0:01:30]} 11. Qe2 {[%emt 0:02:30]} Rc8 {[%emt 0:00:30]} 12. Rac1 {[%emt 0:04:30]} Re8 {[%emt 0:03:30]} 13. Rfd1 {[%emt 0:00:30]} Rc7 {[%emt 0:00:30]} 14. Ne5 {[%emt 0:06:30]} Nxe5 {[%emt 0:01:30]} 15. dxe5 {[%emt 0:05:30]} Nd7 {[%emt 0:00:30]} 16. cxd5 {[%emt 0:05:30]} Bxd5 {[%emt 0:01:30]} 17. Nc4 {[%emt 0:07:30]} Qb8 {[%emt 0:05:30]} 18. h4 {[%emt 0:06:30]} Nf8 {[%emt 0:07:30]} 19. h5 {[%emt 0:00:30]} h6 {[%emt 0:01:30]} 20. Bb1 {[%emt 0:10:30]} Rec8 {[%emt 0:04:30]} 21. Ne3 {[%emt 0:11:30]} Rxc1 {[%emt 0:01:30]} 22. Bxc1 {[%emt 0:01:30]} Qxe5 {[%emt 0:14:30]} 23. Bb2 {[%emt 0:00:30]} Qg5 {[%emt 0:00:30]} 24. Rd4 {[%emt 0:01:30]} f5 {[%emt 0:06:30]} 25. Nxd5 {[%emt 0:01:30]} exd5 {[%emt 0:00:30]} 26. Rxd5 {[%emt 0:00:30]} Rc5 {[%emt 0:01:30]} 27. Rxc5 {[%emt 0:03:30]} Bxc5 {[%emt 0:00:30]} 28. b4 {[%emt 0:01:30]} Bd6 {[%emt 0:02:30]} 29. Qc4+ {[%emt 0:00:30]} Kh8 {[%emt 0:00:30]} 30. Qf7 {[%emt 0:05:30]} Qg4 {[%emt 0:07:30]} 31. Bc2 {[%emt 0:01:30]} 1-0